fUST/lending_fUST_20250722
["ID","MTS","AMOUNT","RATE_DAILY","PERIOD"]
[374020432,1753185046946,-704.06,0.00020592,2]
[374020434,1753185046955,-523.46,0.00020592,2]
[374020436,1753185046965,-888.39,0.00020592,2]
[374020438,1753185046974,-460.0,0.00020592,2]
[374020440,1753185046984,-488.45,0.00020592,2]
[374020442,1753185046993,-622.73,0.00020593,2]
[374020444,1753185047003,-178.80003706,0.00020723,2]
[374020446,1753185047012,-837.473,0.00020723,2]
[374020448,1753185047021,-152.23381412,0.00020757,2]
[374020450,1753185047031,-5000.0,0.00020818,2]
[374020452,1753185047040,-2689.92146148,0.00020831,4]
[374020454,1753185047050,-560.0,0.00020863,2]
[374020456,1753185047060,-2096.94,0.00020865,2]
[374020458,1753185047071,-460.0,0.00020865,2]
[374020460,1753185047081,-460.0,0.00020865,2]
[374020462,1753185047090,-520.25,0.00020866,2]
[374020464,1753185047099,-704.06,0.00020866,2]
[374020466,1753185047109,-523.46,0.00020866,2]
[374020468,1753185047118,-888.39,0.00020866,2]
[374020471,1753185047129,-460.0,0.00020866,2]
[374020472,1753185047139,-622.73,0.00020867,2]
[374020474,1753185047150,-1302.85470673,0.000209,2]
[374020476,1753185047159,-158.2508833,0.00020915,2]
[374020479,1753185047169,-2689.92146148,0.00021072,4]
[374020480,1753185047178,-500.0,0.00021133,2]
[374020482,1753185047187,-437.60077437,0.00021133,2]
[374020484,1753185047196,-500.3480752,0.00021133,2]
[374020486,1753185047206,-500.0,0.00021133,2]
[374020488,1753185047215,-500.0,0.00021133,2]
[374020491,1753185047226,-500.38964033,0.00021133,2]
[374020492,1753185047236,-548.34048182,0.00021133,2]
[374020495,1753185047245,-500.0,0.00021133,2]
[374020496,1753185047254,-500.0,0.00021133,2]
[374020498,1753185047264,-500.0,0.00021133,2]
[374020500,1753185047274,-500.0,0.00021133,2]
[374020502,1753185047283,-500.0,0.00021133,2]
[374020504,1753185047292,-500.0,0.00021133,2]
[374020506,1753185047302,-500.0,0.00021133,2]
[374020508,1753185047313,-500.0,0.00021133,2]
[374020510,1753185047322,-500.0,0.00021133,2]
[374020512,1753185047332,-500.0,0.00021133,2]
[374020514,1753185047341,-500.0,0.00021133,2]
[374020516,1753185047350,-347.83318823,0.00021133,2]
[374020518,1753185047359,-500.0,0.00021133,2]
[374020520,1753185047368,-500.0,0.00021133,2]
[374020522,1753185047378,-2096.94,0.00021139,2]
[374020524,1753185047388,-460.0,0.00021139,2]
[374020527,1753185047400,-460.0,0.00021139,2]
[374020529,1753185047409,-520.25,0.0002114,2]
[374020530,1753185047418,-704.06,0.0002114,2]
[374020532,1753185047427,-523.46,0.0002114,2]
[374020534,1753185047436,-888.39,0.0002114,2]
[374020536,1753185047445,-460.0,0.0002114,2]
[374020538,1753185047455,-622.73,0.00021141,2]
[374020540,1753185047464,-500.0,0.00021245,2]
[374020542,1753185047473,-500.59816244,0.00021245,2]
[374020544,1753185047483,-500.17276481,0.00021245,2]
[374020546,1753185047492,-500.0,0.00021245,2]
[374020548,1753185047501,-500.0,0.00021245,2]
[374020549,1753185047510,-2689.92146148,0.00021314,5]
[374020550,1753185047519,-158.25297307,0.000214,2]
[374020551,1753185047529,-158.2507302,0.000214,2]
[374020552,1753185047538,-500.69980759,0.000214,2]
[374020553,1753185047547,-160.06534133,0.000214,2]
[374020554,1753185047556,-374.63540786,0.000214,2]
[374020555,1753185047566,-500.0,0.000214,2]
[374020556,1753185047575,-500.0,0.000214,2]
[374020558,1753185047585,-158.64689627,0.000214,2]
[374020560,1753185047594,-500.0,0.000214,2]
[374020562,1753185047603,-2096.94,0.00021413,2]
[374020564,1753185047613,-460.0,0.00021413,2]
[374020566,1753185047622,-460.0,0.00021413,2]
[374020568,1753185047635,-520.25,0.00021414,2]
[374020570,1753185047644,-704.06,0.00021414,2]
[374020572,1753185047654,-523.46,0.00021414,2]
[374020574,1753185047662,-888.39,0.00021414,2]
[374020576,1753185047671,-187.6,0.00021414,2]
[374020578,1753185047681,-622.73,0.00021415,2]
[374020580,1753185047689,-2689.92146148,0.00021555,5]
[374020582,1753185047698,-307.58573868,0.00021638,2]
[374020584,1753185047711,-500.0,0.00021681,2]
[374020586,1753185047721,-2096.94,0.00021687,2]
[374020588,1753185047730,-435.1,0.00021687,2]
[374020590,1753185047740,-460.0,0.00021687,2]
[374020592,1753185047749,-520.25,0.00021688,2]
[374020594,1753185047759,-704.06,0.00021688,2]
[374020596,1753185047768,-523.46,0.00021688,2]
[374020598,1753185047778,-888.39,0.00021688,2]
[374020600,1753185047787,-622.73,0.00021689,2]
[374020602,1753185047796,-2689.92146148,0.00021797,6]
[374020604,1753185047805,-1003.69047879,0.00021948,2]
[374020606,1753185047814,-500.0,0.00021948,2]
[374020608,1753185047823,-500.0,0.00021948,2]
[374020610,1753185047833,-2096.94,0.00021961,2]
[374020612,1753185047842,-460.0,0.00021961,2]
[374020614,1753185047851,-520.25,0.00021962,2]
[374020616,1753185047861,-704.06,0.00021962,2]
[374020618,1753185047871,-523.46,0.00021962,2]
[374020620,1753185047880,-888.39,0.00021962,2]
[374020622,1753185047889,-622.73,0.00021963,2]
[374020624,1753185047901,-816.89,0.00022,7]
[374020626,1753185047910,-167.0,0.00022,2]
[374020628,1753185047920,-1915.34,0.00022,7]
[374020630,1753185047929,-2689.92146148,0.00022038,6]
[374020632,1753185047939,-737.69508622,0.00022136,2]
[374020634,1753185047948,-2096.94,0.00022235,2]
[374020636,1753185047957,-460.0,0.00022235,2]
[374020638,1753185047967,-520.25,0.00022236,2]
[374020640,1753185047976,-704.06,0.00022236,2]
[374020642,1753185047985,-523.46,0.00022236,2]
[374020644,1753185047994,-888.39,0.00022236,2]
[374020646,1753185048003,-622.73,0.00022237,2]
[374020648,1753185048012,-2689.92146148,0.00022279,6]
[374020650,1753185048021,-2413.92,0.00022465,2]
[374020652,1753185048032,-2096.94,0.00022509,2]
[374020654,1753185048042,-460.0,0.00022509,2]
[374020656,1753185048052,-520.25,0.0002251,2]
[374020658,1753185048061,-704.06,0.0002251,2]
[374020660,1753185048071,-523.46,0.0002251,2]
[374020662,1753185048081,-888.39,0.0002251,2]
[374020664,1753185048091,-622.73,0.00022511,2]
[374020666,1753185048100,-2689.92146148,0.00022521,7]
[374020668,1753185048110,-5927.67,0.000226,7]
[374020670,1753185048120,-12619.94447631,0.000226,7]
[374020672,1753185048129,-174.166471,0.00022603,2]
[374020674,1753185048140,-2689.92146148,0.00022762,7]
[374020676,1753185048151,-2096.94,0.00022783,2]
[374020678,1753185048161,-460.0,0.00022783,2]
[374020680,1753185048171,-520.25,0.00022784,2]
[374020682,1753185048180,-704.06,0.00022784,2]
[374020684,1753185048190,-523.46,0.00022784,2]
[374020686,1753185048200,-888.39,0.00022784,2]
[374020689,1753185048210,-307.58573868,0.00022785,2]
[374020691,1753185048221,-622.73,0.00022785,2]
[374020693,1753185048232,-215.80012421,0.00023,3]
[374020695,1753185048243,-1233.36,0.00023,2]
[374020697,1753185048253,-160.0,0.00023,3]
[374020699,1753185048265,-231.06963584,0.00023,3]
[374020701,1753185048280,-160.0,0.00023,3]
[374020703,1753185048297,-160.0,0.00023,3]
[374020705,1753185048307,-160.0,0.00023,2]
[374020707,1753185048318,-2689.92146148,0.00023003,8]
[374020720,1753185048438,-2096.94,0.00023057,2]
[374020723,1753185048449,-460.0,0.00023057,2]
[374020725,1753185048458,-520.25,0.00023058,2]
[374020727,1753185048468,-704.06,0.00023058,2]
[374020728,1753185048478,-523.46,0.00023058,2]
[374020730,1753185048488,-888.39,0.00023058,2]
[374020733,1753185048497,-622.73,0.00023059,2]
[374020735,1753185048507,-2689.92146148,0.00023245,8]
[374020737,1753185048517,-1312.29489541,0.00023264,2]
[374020739,1753185048527,-215.0738,0.00023264,2]
[374020741,1753185048537,-2096.94,0.00023331,2]
[374020743,1753185048546,-331.29,0.00023331,2]
[374020745,1753185048556,-520.33532335,0.00023332,2]
[374020747,1753185048566,-704.27,0.00023332,2]
[374020749,1753185048575,-523.4949907,0.00023332,2]
[374020750,1753185048585,-888.56,0.00023332,2]
[374020752,1753185048594,-2689.92146148,0.00023486,9]
[374020755,1753185048605,-816.89,0.000235,7]
[374020757,1753185048617,-2097.12,0.00023605,2]
[374020759,1753185048626,-737.69508621,0.00023658,2]
[374020761,1753185048636,-1915.34,0.000237,7]
[374020763,1753185048646,-2689.92146148,0.00023728,9]
[374020764,1753185048658,-168.0,0.00023843,2]
[374020767,1753185048668,-200.41357,0.000239,2]
[374020769,1753185048677,-382.94374076,0.00023906,2]
[374020771,1753185048687,-307.58573868,0.00023933,2]
[374020773,1753185048698,-168.0,0.00023936,2]
[374020775,1753185048709,-168.0,0.00023939,2]
[374020777,1753185048718,-2689.92146148,0.00023969,10]
[374020779,1753185048728,-100000.0,0.0002399,2]
[374020781,1753185048738,-215.80012421,0.00024,7]
[374020783,1753185048749,-160.0,0.00024,7]
[374020785,1753185048758,-648.0,0.00024097,2]
[374020787,1753185048768,-2157.0,0.00024097,2]
[374020789,1753185048782,-5927.67,0.000241,7]
[374020791,1753185048799,-2689.92146148,0.0002421,10]
[374020793,1753185048808,-151.0,0.000244,7]
[374020795,1753185048818,-2689.92146148,0.00024452,11]
[374020797,1753185048827,-2356.119,0.00024533,2]
[374020799,1753185048836,-223.0315306,0.00024633,2]
[374020801,1753185048847,-2689.92146148,0.00024693,11]
[374020803,1753185048856,-163.565892,0.00024767,8]
[374020805,1753185048866,-168.0,0.00024782,2]
[374020807,1753185048876,-500.0,0.00024873,2]
[374020809,1753185048885,-500.0,0.00024873,2]
[374020811,1753185048897,-500.0,0.00024873,2]
[374020813,1753185048907,-500.0,0.00024873,2]
[374020815,1753185048917,-500.0,0.00024873,2]
[374020817,1753185048926,-500.40940972,0.00024873,2]
[374020818,1753185048936,-500.0,0.00024873,2]
[374020820,1753185048946,-500.0,0.00024873,2]
[374020822,1753185048956,-500.0,0.00024873,2]
[374020824,1753185048966,-500.0,0.00024873,2]
[374020827,1753185048976,-500.0,0.00024873,2]
[374020829,1753185048986,-500.0,0.00024873,2]
[374020831,1753185048996,-261.38951761,0.00024873,2]
[374020833,1753185049005,-168.0,0.00024883,2]
[374020835,1753185049016,-151.0,0.000249,7]
[374020837,1753185049026,-201.291909,0.000249,7]
[374020839,1753185049036,-201.291909,0.000249,7]
[374020841,1753185049046,-506524.6956,0.000249,2]
[374020843,1753185049062,-2689.92146148,0.00024934,12]
[374020845,1753185049078,-215.80012421,0.00025,10]
[374020847,1753185049088,-215.80012421,0.00025,30]
[374020849,1753185049098,-151.0,0.00025,7]
[374020851,1753185049107,-2000.0,0.00025,2]
[374020853,1753185049116,-199.0,0.00025,7]
[374020855,1753185049125,-1915.34,0.00025,7]
[374020857,1753185049134,-168.0,0.00025072,2]
[374020859,1753185049144,-307.58573868,0.0002508,2]
[374020861,1753185049157,-2689.92146148,0.00025176,12]
[374020862,1753185049166,-158.159765,0.0002518,3]
[374020864,1753185049175,-737.69508621,0.0002518,2]
[374020866,1753185049185,-816.89,0.000252,7]
[374020868,1753185049195,-2413.92,0.00025205,4]
[374020870,1753185049204,-293.278932,0.00025206,2]
[374020872,1753185049214,-151.0,0.00025206,2]
[374020875,1753185049224,-151.0,0.00025206,2]
[374020877,1753185049233,-168.83630172,0.00025206,2]
[374020879,1753185049243,-151.0,0.00025206,2]
[374020880,1753185049254,-151.0,0.00025206,2]
[374020882,1753185049264,-473.0,0.00025206,2]
[374020884,1753185049274,-500.0,0.00025206,2]
[374020887,1753185049284,-151.0,0.00025206,2]
[374020888,1753185049293,-460.0,0.00025206,2]
[374020889,1753185049304,-200.31747799,0.00025206,2]
[374020890,1753185049313,-151.0,0.00025206,2]
[374020891,1753185049324,-500.0,0.00025206,2]
[374020892,1753185049333,-151.0,0.00025206,2]
[374020893,1753185049342,-151.0,0.00025206,2]
[374020894,1753185049352,-429.4514592,0.0002526,2]
[374020895,1753185049361,-151.0,0.00025272,7]
[374020896,1753185049370,-151.0,0.00025272,7]
[374020897,1753185049379,-151.0,0.00025272,7]
[374020898,1753185049388,-151.0,0.00025272,7]
[374020899,1753185049399,-151.0,0.00025272,7]
[374020900,1753185049408,-151.0,0.00025272,7]
[374020901,1753185049418,-151.0,0.00025272,7]
[374020902,1753185049428,-151.0,0.00025272,7]
[374020903,1753185049437,-151.0,0.00025272,7]
[374020904,1753185049447,-151.0,0.00025272,7]
[374020905,1753185049456,-151.0,0.00025272,7]
[374020906,1753185049465,-151.0,0.00025272,7]
[374020907,1753185049475,-151.0,0.00025272,7]
[374020908,1753185049485,-151.0,0.00025272,7]
[374020909,1753185049494,-151.0,0.00025272,7]
[374020910,1753185049503,-151.0,0.00025272,7]
[374020911,1753185049513,-151.0,0.00025272,7]
[374020912,1753185049522,-151.0,0.00025272,7]
[374020913,1753185049531,-237.757173,0.00025272,7]
[374020914,1753185049540,-151.0,0.00025272,7]
[374020915,1753185049549,-151.0,0.00025272,7]
[374020916,1753185049558,-151.0,0.00025272,7]
[374020917,1753185049568,-151.0,0.00025272,7]
[374020918,1753185049577,-151.0,0.00025272,7]
[374020919,1753185049586,-151.0,0.00025272,7]
[374020920,1753185049595,-151.0,0.00025272,7]
[374020921,1753185049605,-151.0,0.00025272,7]
[374020922,1753185049615,-151.0,0.00025272,7]
[374020923,1753185049624,-151.0,0.00025272,7]
[374020924,1753185049638,-151.0,0.00025272,7]
[374020926,1753185049647,-151.0,0.00025272,7]
[374020928,1753185049657,-151.0,0.00025272,7]
[374020930,1753185049666,-151.0,0.00025272,7]
[374020931,1753185049675,-151.0,0.00025272,7]
[374020933,1753185049684,-258.592772,0.00025272,7]
[374020936,1753185049694,-152.368911,0.00025272,7]
[374020937,1753185049703,-151.0,0.00025272,7]
[374020939,1753185049715,-151.0,0.00025272,7]
[374020942,1753185049725,-151.0,0.00025272,7]
[374020944,1753185049734,-297.102138,0.00025272,7]
[374020946,1753185049743,-152.453474,0.00025272,7]
[374020948,1753185049752,-465.602867,0.00025272,7]
[374020950,1753185049761,-465.602867,0.00025272,7]
[374020952,1753185049771,-465.602867,0.00025272,7]
[374020953,1753185049780,-465.602867,0.00025272,7]
[374020955,1753185049789,-465.602867,0.00025272,7]
[374020957,1753185049799,-465.602867,0.00025272,7]
[374020959,1753185049808,-465.602867,0.00025272,7]
[374020961,1753185049817,-465.602867,0.00025272,7]
[374020963,1753185049826,-465.602867,0.00025272,7]
[374020965,1753185049835,-465.602867,0.00025272,7]
[374020967,1753185049844,-465.602867,0.00025272,7]
[374020970,1753185049854,-465.602867,0.00025272,7]
[374020972,1753185049864,-465.602867,0.00025272,7]
[374020973,1753185049873,-465.602867,0.00025272,7]
[374020975,1753185049882,-465.602867,0.00025272,7]
[374020977,1753185049891,-465.602867,0.00025272,7]
[374020979,1753185049902,-465.602867,0.00025272,7]
[374020981,1753185049911,-465.602867,0.00025272,7]
[374020984,1753185049920,-465.602867,0.00025272,7]
[374020986,1753185049929,-465.602871,0.00025272,7]
[374020988,1753185049938,-151.0,0.00025272,7]
[374020990,1753185049947,-151.0,0.00025272,7]
[374020992,1753185049956,-191.676563,0.00025272,7]
[374020994,1753185049965,-151.0,0.00025272,7]
[374020996,1753185049974,-151.0,0.00025272,7]
[374020998,1753185049984,-550.05247177,0.00025273,2]
[374021000,1753185049993,-500.0,0.00025273,2]
[374021001,1753185050002,-500.0,0.00025273,2]
[374021003,1753185050011,-500.0,0.00025273,2]
[374021005,1753185050020,-500.50351289,0.00025273,2]
[374021007,1753185050029,-500.0,0.00025273,2]
[374021009,1753185050038,-500.0,0.00025273,2]
[374021011,1753185050049,-500.0,0.00025273,2]
[374021013,1753185050058,-500.0,0.00025273,2]
[374021016,1753185050068,-2336.68157063,0.00025273,2]
[374021018,1753185050077,-151.48746,0.00025273,7]
[374021019,1753185050086,-151.0,0.00025273,7]
[374021021,1753185050095,-151.0,0.00025273,7]
[374021023,1753185050104,-151.0,0.00025273,7]
[374021025,1753185050113,-151.0,0.00025273,7]
[374021028,1753185050123,-151.0,0.00025273,7]
[374021030,1753185050133,-151.0,0.00025273,7]
[374021032,1753185050142,-151.0,0.00025273,7]
[374021034,1753185050153,-151.0,0.00025273,7]
[374021036,1753185050163,-151.0,0.00025273,7]
[374021038,1753185050172,-151.0,0.00025273,7]
[374021040,1753185050181,-151.0,0.00025273,7]
[374021042,1753185050191,-151.0,0.00025273,7]
[374021044,1753185050200,-151.0,0.00025273,7]
[374021046,1753185050209,-151.0,0.00025273,7]
[374021048,1753185050218,-151.0,0.00025273,7]
[374021050,1753185050227,-160.78316,0.00025273,7]
[374021052,1753185050236,-151.0,0.00025276,7]
[374021054,1753185050246,-151.0,0.00025276,7]
[374021056,1753185050256,-153.010298,0.00025276,7]
[374021057,1753185050265,-151.0,0.00025276,7]
[374021058,1753185050274,-151.0,0.00025276,7]
[374021059,1753185050283,-152.821105,0.00025276,7]
[374021060,1753185050293,-151.0,0.00025276,7]
[374021061,1753185050302,-151.0,0.00025276,7]
[374021062,1753185050312,-151.0,0.00025276,7]
[374021063,1753185050323,-151.0,0.00025276,7]
[374021064,1753185050332,-151.0,0.00025276,7]
[374021065,1753185050341,-151.0,0.00025276,7]
[374021066,1753185050350,-151.0,0.00025276,7]
[374021067,1753185050359,-151.0,0.00025276,7]
[374021068,1753185050370,-151.0,0.00025276,7]
[374021069,1753185050380,-215.316037,0.00025276,7]
[374021070,1753185050389,-151.0,0.00025276,7]
[374021071,1753185050398,-1475.07153963,0.00025279,2]
[374021072,1753185050412,-1730385.81544227,0.0002528,20]
[374021073,1753185050421,-2084002.02418523,0.0002528,20]
[374021074,1753185050496,-50090.08628958,0.0002528,20]
[374021075,1753185050505,-25202.71471389,0.0002528,20]
[374023089,1753185250330,6647.13295953,0.00023,30]
[374023090,1753185350980,169.92,0.00024657,60]
[374023093,1753185706675,50000.0,0.00024658,60]
[374023094,1753185710744,365.55562172,0.00016518,2]
[374023095,1753185711080,182.77781086,0.00016519,2]
[374023098,1753185857233,161.629344,0.00013699,2]
[374023100,1753185992603,-202.39091256,0.00016929,2]
[374023101,1753185992626,-1200.0,0.00017027,2]
[374023102,1753185992649,-300.0,0.00017027,2]
[374023103,1753185992670,-460.0,0.00017028,2]
[374023104,1753185992692,-460.0,0.00017028,2]
[374023105,1753185992714,-460.0,0.00017028,2]
[374023106,1753185992735,-460.0,0.00017028,2]
[374023107,1753185992757,-460.0,0.00017028,2]
[374023108,1753185992777,-499.14,0.00017028,2]
[374023109,1753185992799,-460.0,0.00017028,2]
[374023110,1753185992820,-460.0,0.00017028,2]
[374023111,1753185992841,-460.0,0.00017028,2]
[374023112,1753185992862,-460.0,0.00017028,2]
[374023113,1753185992883,-460.0,0.00017028,2]
[374023114,1753185992904,-460.0,0.00017028,2]
[374023115,1753185992925,-460.0,0.00017028,2]
[374023116,1753185992948,-460.0,0.00017028,2]
[374023117,1753185992971,-460.0,0.00017028,2]
[374023118,1753185992995,-460.0,0.00017028,2]
[374023119,1753185993019,-460.0,0.00017028,2]
[374023120,1753185993041,-460.0,0.00017028,2]
[374023121,1753185993063,-460.0,0.00017028,2]
[374023122,1753185993085,-460.0,0.00017028,2]
[374023123,1753185993109,-460.0,0.00017028,2]
[374023124,1753185993130,-460.0,0.00017029,2]
[374023125,1753185993151,-460.0,0.00017029,2]
[374023126,1753185993172,-460.0,0.00017029,2]
[374023127,1753185993196,-460.0,0.00017029,2]
[374023128,1753185993219,-460.0,0.00017029,2]
[374023129,1753185993244,-460.0,0.00017029,2]
[374023130,1753185993267,-460.0,0.00017029,2]
[374023131,1753185993290,-151.54598844,0.00017029,2]
[374023132,1753186029144,-460.0,0.00017028,2]
[374023133,1753186029165,-300.0,0.00017028,2]
[374023134,1753186029186,-460.0,0.00017028,2]
[374023135,1753186029207,-308.45401156,0.00017029,2]
[374023136,1753186029227,-460.0,0.00017029,2]
[374023137,1753186029247,-460.0,0.00017029,2]
[374023138,1753186029268,-460.0,0.00017029,2]
[374023139,1753186029289,-460.0,0.00017029,2]
[374023140,1753186029309,-460.0,0.00017029,2]
[374023141,1753186029329,-460.0,0.00017029,2]
[374023142,1753186029349,-460.0,0.00017029,2]
[374023143,1753186029369,-460.0,0.00017029,2]
[374023144,1753186029389,-460.0,0.00017029,2]
[374023145,1753186029410,-460.0,0.00017029,2]
[374023146,1753186029430,-460.0,0.00017029,2]
[374023147,1753186029450,-460.0,0.00017029,2]
[374023148,1753186029472,-460.0,0.00017029,2]
[374023149,1753186029493,-460.0,0.00017029,2]
[374023150,1753186029514,-171.62878727,0.00017029,2]
[374023151,1753186029540,-460.0,0.00017029,2]
[374023152,1753186029560,-460.0,0.00017029,2]
[374023153,1753186029581,-460.0,0.00017029,2]
[374023154,1753186029601,-460.0,0.00017029,2]
[374023155,1753186029622,-500.0,0.00017029,2]
[374023156,1753186029642,-460.0,0.00017029,2]
[374023157,1753186029662,-460.0,0.00017029,2]
[374023158,1753186029682,-593.44166536,0.00017029,2]
[374023159,1753186029706,-460.0,0.00017029,2]
[374023160,1753186029728,-460.0,0.00017029,2]
[374023161,1753186029750,-460.0,0.00017029,2]
[374023162,1753186029770,-460.0,0.00017029,2]
[374023163,1753186029790,-446.3261383,0.00017029,2]
[374023164,1753186029812,-460.0,0.00017029,2]
[374023165,1753186029834,-460.0,0.00017029,2]
[374023166,1753186029856,-460.0,0.00017029,2]
[374023167,1753186029877,-460.0,0.00017029,2]
[374023168,1753186029899,-460.0,0.00017029,2]
[374023169,1753186029920,-460.0,0.00017029,2]
[374023170,1753186029942,-460.0,0.00017029,2]
[374023171,1753186029964,-500.0,0.00017029,2]
[374023172,1753186029986,-460.0,0.00017029,2]
[374023173,1753186030007,-460.0,0.00017029,2]
[374023174,1753186030029,-460.0,0.00017029,2]
[374023175,1753186030048,-460.0,0.00017029,2]
[374023176,1753186030070,-460.0,0.00017029,2]
[374023177,1753186030092,-460.0,0.00017029,2]
[374023178,1753186030113,-460.0,0.00017029,2]
[374023179,1753186030135,-460.0,0.00017029,2]
[374023180,1753186030155,-460.0,0.00017029,2]
[374023181,1753186030176,-460.0,0.00017029,2]
[374023182,1753186030197,-460.0,0.00017029,2]
[374023183,1753186030218,-460.0,0.00017029,2]
[374023184,1753186030239,-460.0,0.00017029,2]
[374023185,1753186030260,-460.0,0.00017029,2]
[374023186,1753186030282,-460.0,0.00017029,2]
[374023187,1753186030303,-460.0,0.00017029,2]
[374023188,1753186030324,-460.0,0.00017029,2]
[374023189,1753186030346,-460.0,0.00017029,2]
[374023190,1753186030367,-460.0,0.00017029,2]
[374023191,1753186030388,-460.0,0.00017029,2]
[374023192,1753186030410,-460.0,0.00017029,2]
[374023193,1753186030431,-460.0,0.00017029,2]
[374023194,1753186030453,-460.0,0.00017029,2]
[374023195,1753186030477,-460.0,0.00017029,2]
[374023196,1753186030497,-460.0,0.00017029,2]
[374023197,1753186030521,-427.43199455,0.00017029,2]
[374023198,1753186030541,-460.0,0.0001703,2]
[374023199,1753186030561,-366.27236655,0.0001703,2]
[374023200,1753186030584,-460.0,0.0001703,2]
[374023201,1753186030611,-205.78,0.0001703,2]
[374023202,1753186030633,-460.0,0.0001703,2]
[374023203,1753186030653,-460.0,0.0001703,2]
[374023204,1753186030678,-460.0,0.0001703,2]
[374023205,1753186030698,-534.38195708,0.0001703,2]
[374023206,1753186030718,-460.0,0.0001703,2]
[374023207,1753186030738,-460.0,0.0001703,2]
[374023208,1753186030757,-460.0,0.0001703,2]
[374023209,1753186030791,-461.69053386,0.0001703,2]
[374023210,1753186030811,-460.0,0.0001703,2]
[374023211,1753186030830,-460.0,0.0001703,2]
[374023212,1753186030851,-460.0,0.0001703,2]
[374023213,1753186030872,-461.19601133,0.0001703,2]
[374023214,1753186030893,-460.0,0.0001703,2]
[374023215,1753186030912,-460.0,0.0001703,2]
[374023216,1753186030932,-460.0,0.0001703,2]
[374023217,1753186030955,-460.0,0.0001703,2]
[374023218,1753186030975,-460.0,0.0001703,2]
[374023219,1753186030995,-460.0,0.0001703,2]
[374023220,1753186031015,-438.57327389,0.0001703,2]
[374023221,1753186031040,-460.0,0.0001703,2]
[374023222,1753186031059,-460.0,0.0001703,2]
[374023223,1753186031084,-460.0,0.0001703,2]
[374023224,1753186031110,-460.0,0.0001703,2]
[374023225,1753186031130,-460.0,0.0001703,2]
[374023226,1753186031150,-460.0,0.0001703,2]
[374023227,1753186031171,-460.0,0.0001703,2]
[374023228,1753186031193,-460.0,0.0001703,2]
[374023229,1753186031214,-460.0,0.0001703,2]
[374023230,1753186031234,-460.0,0.00017302,2]
[374023231,1753186031255,-460.0,0.00017302,2]
[374023232,1753186031279,-460.0,0.00017302,2]
[374023233,1753186031301,-460.0,0.00017302,2]
[374023234,1753186031322,-460.0,0.00017302,2]
[374023235,1753186031343,-460.0,0.00017302,2]
[374023236,1753186031364,-460.0,0.00017302,2]
[374023237,1753186031386,-460.0,0.00017302,2]
[374023238,1753186031408,-460.0,0.00017302,2]
[374023239,1753186031428,-460.0,0.00017302,2]
[374023240,1753186031450,-460.0,0.00017302,2]
[374023241,1753186031471,-460.0,0.00017302,2]
[374023242,1753186031494,-460.0,0.00017302,2]
[374023243,1753186031520,-460.0,0.00017303,2]
[374023244,1753186031541,-460.0,0.00017303,2]
[374023245,1753186031561,-460.0,0.00017303,2]